Cogmind - Beta 16.1 @@@ ROGUE MODE // 2026.02.20 @ 23:47:37 Player: APerTAS Result: Destroyed by S-10 Pest with Light Assault Rifle Performance ------------- Evolutions (1) 500 Regions Visited (4) 800 Robots Destroyed (1) 5 Value Destroyed (16) 16 Prototype IDs (0) 0 Alien Tech Used (0) 0 Bonus (-107) -107 TOTAL SCORE: 1214 Bonus ------- Pacifist 200 Friendly Fire -307 Cogmind --------- Core Integrity 0/400 Matter 300/300 Energy 99/100 System Corruption 9% Temperature Cool (0) Movement Core (50) Location -9/Mines Parts ------- > --- POWER (3) -------- (None) > --- PROPULSION (2) --- (None) > --- UTILITY (2) ------ (None) > --- WEAPON (2) ------- (None) > --- INVENTORY (5) ---- (None) Peak State ------------ None Favorites ----------- Power None Propulsion None Utility None Weapon None Build | -11 -10 -10 -9 -9 ------- Run | Yrd Mat Min Mat Min Slots Evolved 2 | . . . 2 . Power 2 | . . . 2 . Propulsion . | . . . . . Utility . | . . . . . Weapon . | . . . . . Parts Attached . | . . . . . Power . | . . . . . Engine . | . . . . . Core . | . . . . . Reactor . | . . . . . Propulsion . | . . . . . Treads . | . . . . . Leg . | . . . . . Wheel . | . . . . . Hover . | . . . . . Flight . | . . . . . Utility . | . . . . . Device . | . . . . . Storage . | . . . . . Processor . | . . . . . Hackware . | . . . . . Protection . | . . . . . Artifact . | . . . . . Weapon . | . . . . . Energy Gun . | . . . . . Energy Cannon . | . . . . . Ballistic Gun . | . . . . . Ballistic Cannon . | . . . . . Launcher . | . . . . . Special Weapon . | . . . . . Impact Weapon . | . . . . . Slashing Weapon . | . . . . . Piercing Weapon . | . . . . . Special Melee Weapon . | . . . . . Unidentified Prototypes . | . . . . . Parts Lost . | . . . . . Power . | . . . . . Propulsion . | . . . . . Utility . | . . . . . Weapon . | . . . . . Highest Loss Streak . | . . . . . To Critical Strikes . | . . . . . Average Backups . | . . . . . Power . | . . . . . Propulsion . | . . . . . Utility . | . . . . . Weapon . | . . . . . Tool/Special . | . . . . . Unused Backups . | . . . . . Power . | . . . . . Propulsion . | . . . . . Utility . | . . . . . Weapon . | . . . . . Tool/Special . | . . . . . Average Slot Usage (%) . | . . . . . Peak Build Rating . | . . . . . Average Rating . | . . . . . On Entrance . | . . . . . Avg Prop Armor Cover (%) . | . . . . . Naked Turns 444 | . 27 159 41 217 Heaviest Build . | . . . . . Greatest Support 3 | 3 3 3 3 3 Greatest Overweight (x) . | . . . . . Average Overweight (x) . | . . . . . Largest Inventory Capacity 5 | 5 5 5 5 5 Average Capacity 5 | 5 5 5 5 5 Most Carried . | . . . . . Average Carried . | . . . . . Final Capacity 5 | 5 5 5 5 5 Final Carried . | . . . . . Class Distribution -------------------- 100% | Mutant Dominant Class ---------------- Mutant | -10/Materials Mutant | -10/Mines Mutant | -9/Materials Mutant | -9/Mines Resources | -11 -10 -10 -9 -9 ----------- Run | Yrd Mat Min Mat Min Matter Collected 175 | . 88 74 . 13 Remotely . | . . . . . Salvage Created 20 | . . . 20 . Parts . | . . . . . Haulers Intercepted . | . . . . . Recyclers Shooed . | . . . . . Parts Field Recycled . | . . . . . Retrieved Matter . | . . . . . Parts Self-Destructed . | . . . . . Prevented . | . . . . . Parts Restored . | . . . . . Kills | -11 -10 -10 -9 -9 ------- Run | Yrd Mat Min Mat Min Combat Hostiles Destroyed . | . . . . . Classes Destroyed 1 | . . . 1 . Operator 1 | . . . 1 . Best Kill Streak 1 | . . . 1 . Combat Bots Only . | . . . . . Max Kills in Single Turn 1 | . . . 1 . Gunslinging . | . . . . . Exploded . | . . . . . Melee . | . . . . . Uniques/NPCs Destroyed . | . . . . . Combat | -11 -10 -10 -9 -9 -------- Run | Yrd Mat Min Mat Min Hostile Shots Fired 82 | . 8 31 1 42 Missed 35 | . 3 14 1 17 Hits 47 | . 5 17 . 25 Projectile 47 | . 5 17 . 25 Critical Strikes 1 | . . . . 1 Damage Taken 608 | . 44 163 9 392 Core 608 | . 44 163 9 392 Absorbed by Shields . | . . . . . Core Remaining (%) 58 | 100 . 17 . . Volleys Fired . | . . . . . Largest . | . . . . . Hottest . | . . . . . Shots Fired . | . . . . . Gun . | . . . . . Cannon . | . . . . . Launcher . | . . . . . Special . | . . . . . Kinetic . | . . . . . Thermal . | . . . . . Explosive . | . . . . . Electromagnetic . | . . . . . Robot Hit Streak . | . . . . . Robot Miss Streak . | . . . . . Penetration Max . | . . . . . Secondary Targets . | . . . . . Shots Hit Robots . | . . . . . Core Hits 12 | . . 1 . 11 Critical Kills . | . . . . . Critical Parts Destroyed . | . . . . . Critical Strikes . | . . . . . Melee Attacks . | . . . . . Impact . | . . . . . Slashing . | . . . . . Piercing . | . . . . . Sneak Attacks . | . . . . . Combat Hostiles . | . . . . . Follow-up Attacks . | . . . . . Damage Inflicted 361 | . . 35 19 307 Guns . | . . . . . Cannons . | . . . . . Explosions . | . . . . . Melee . | . . . . . Ramming 361 | . . 35 19 307 Kinetic . | . . . . . Thermal . | . . . . . Explosive . | . . . . . Electromagnetic . | . . . . . Impact . | . . . . . Slashing . | . . . . . Piercing . | . . . . . Highest Corruption 9 | . . 1 . 9 Average Corruption 5 | . . 1 . 7 Corruption Purged . | . . . . . Corruption Blocked . | . . . . . Effects 6 | . . . . 6 Message Errors 1 | . . . . 1 Matter Fused 2 | . . . . 2 Heat Flow Errors 1 | . . . . 1 Energy Discharges 1 | . . . . 1 Data Loss (minor) 1 | . . . . 1 Overload Shots . | . . . . . Overflow Damage 8 | . . . 8 . Projectiles . | . . . . . Explosions . | . . . . . Melee 8 | . . . 8 . Knockbacks 3 | . . . . 3 Impact 3 | . . . . 3 Kinetic . | . . . . . Secondary . | . . . . . Self-Inflicted Damage 151 | . . 16 9 126 Shots . | . . . . . Rammed 121 | . . 9 2 110 Targets Rammed 121 | . . 9 2 110 Kicked . | . . . . . Crushed . | . . . . . Highest Temperature 209 | . . . . 209 Average Temperature 111 | . . . . 111 Received Heat Transfer . | . . . . . Siege Activations . | . . . . . Martial Activations . | . . . . . Shielding Activations . | . . . . . Robots Disrupted . | . . . . . Combat Hostiles . | . . . . . Robots Corrupted 1 | . . . 1 . Combat Hostiles . | . . . . . Parts Fried 3 | . . . 3 . Impact Corruptions 2 | . . . 1 1 Robots Melted . | . . . . . Combat Hostiles . | . . . . . Parts Melted . | . . . . . Heat Transferred . | . . . . . Parts Sabotaged . | . . . . . Parts Stolen . | . . . . . Parts Stripped . | . . . . . Power Chain Reactions . | . . . . . Alert | -11 -10 -10 -9 -9 ------- Run | Yrd Mat Min Mat Min Maximum Alert Level . | . . . . . Low Security (%) 100 | 100 100 100 100 100 Level 1 . | . . . . . Level 2 . | . . . . . Level 3 . | . . . . . Level 4 . | . . . . . Level 5 . | . . . . . High Security . | . . . . . Max Security . | . . . . . Peak Influence 90 | . . 90 31 65 Initial 31 | . . . 31 6 Average 16 | . . 31 27 6 Influence Increases 200 | . . 120 5 75 Destroy 0b10 Robot/NC 5 | . . . 5 . Lose Combat Pursuer 195 | . . 120 . 75 Influence Decreases 135 | . . 40 69 26 Entered New Map 59 | . . . 49 10 Time Decay 76 | . . 40 20 16 Squads Dispatched 4 | . 2 . 1 1 Investigation 2 | . 1 . . 1 Extermination . | . . . . . Reinforcement 2 | . 1 . 1 . Assault . | . . . . . Garrison . | . . . . . Intercept . | . . . . . Searches Triggered . | . . . . . Construction Impeded . | . . . . . Haulers Reinforced . | . . . . . Active Scanning Responses . | . . . . . Cargo Convoy Interrupts . | . . . . . Stealth | -11 -10 -10 -9 -9 --------- Run | Yrd Mat Min Mat Min Distress Signals 1 | . . . 1 . Communications Jammed . | . . . . . Distress Signals . | . . . . . Times Spotted 27 | . 3 8 8 8 Peak Tracking Total 9 | . 4 3 9 4 Tactical Retreats 5 | . . 3 . 2 Traps | -11 -10 -10 -9 -9 ------- Run | Yrd Mat Min Mat Min Traps Triggered 1 | . 1 . . . Indirectly . | . . . . . Trap Hack Attempts . | . . . . . Triggered . | . . . . . Disarmed . | . . . . . Reprogrammed . | . . . . . Reused . | . . . . . Traps Extracted . | . . . . . Installed . | . . . . . Triggered . | . . . . . Machines | -11 -10 -10 -9 -9 ---------- Run | Yrd Mat Min Mat Min Machines Disabled . | . . . . . Max in Single Turn . | . . . . . Machines Repaired . | . . . . . Machines Dismantled . | . . . . . Machines Sabotaged . | . . . . . Overloaded Fab Kills . | . . . . . Hacking | -11 -10 -10 -9 -9 --------- Run | Yrd Mat Min Mat Min Machines Accessed 3 | . . 1 1 1 Terminals 2 | . . . 1 1 Fabricators . | . . . . . Repair Stations . | . . . . . Recycling Units . | . . . . . Scanalyzers . | . . . . . Garrison Access . | . . . . . Total Hacks 6 | . . 1 4 1 Successful 4 | . . 1 2 1 Failed 2 | . . . 2 . Catastrophic . | . . . . . Database Lockouts . | . . . . . Manual 5 | . . . 4 1 Terminals 5 | . . . 4 1 Fabricators . | . . . . . Repair Stations . | . . . . . Recycling Units . | . . . . . Scanalyzers . | . . . . . Garrison Access . | . . . . . Terminal Hacks 2 | . . 1 1 . Open Door 1 | . . 1 . . Terminal Index 1 | . . . 1 . Fabricator Hacks . | . . . . . Repair Station Hacks . | . . . . . Recycling Unit Hacks . | . . . . . Scanalyzer . | . . . . . Garrison Access Hacks . | . . . . . Unauthorized Hacks 2 | . . . 1 1 Terminals 2 | . . . 1 1 Botnet 1 | . . . 1 . Sabotage 1 | . . . . 1 Fabricators . | . . . . . Repair Stations . | . . . . . Recycling Units . | . . . . . Scanalyzers . | . . . . . Garrison Access . | . . . . . Data Cores Recovered . | . . . . . Used . | . . . . . Hacking Detections 1 | . . . 1 . Full Trace Events . | . . . . . Feedback Events . | . . . . . Feedback Blocked . | . . . . . Robot Schematics Acquired . | . . . . . Robots Built . | . . . . . Authchips . | . . . . . Time . | . . . . . Total Robot Build Rating . | . . . . . Part Schematics Acquired . | . . . . . Parts Built . | . . . . . Authchips . | . . . . . Time . | . . . . . Total Part Build Rating . | . . . . . Part Studies Acquired . | . . . . . Parts Repaired . | . . . . . Time . | . . . . . Parts Recycled . | . . . . . Recycled Matter . | . . . . . Retrieved Matter . | . . . . . Retrieved Components . | . . . . . Parts Scanalyzed . | . . . . . Part Schematics Acquired . | . . . . . Parts Damaged . | . . . . . Bothacking | -11 -10 -10 -9 -9 ------------ Run | Yrd Mat Min Mat Min Used RIF Installer . | . . . . . Robots Hacked . | . . . . . Non-combat . | . . . . . Combat . | . . . . . Robot Hacks Applied . | . . . . . Relay Couplers Released . | . . . . . Fabnet Peak Effective % . | . . . . . Robots Rewired . | . . . . . Allies Hacked . | . . . . . Hacks Repelled . | . . . . . Allies | -11 -10 -10 -9 -9 -------- Run | Yrd Mat Min Mat Min Total Allies . | . . . . . Largest Group . | . . . . . Highest-Rated Group . | . . . . . Highest-Rated Ally . | . . . . . Total Orders . | . . . . . Ally Attacks . | . . . . . Total Damage . | . . . . . Kills . | . . . . . Allies Corrupted . | . . . . . Allies Melted . | . . . . . Intel | -11 -10 -10 -9 -9 ------- Run | Yrd Mat Min Mat Min Active Infowar (turns) . | . . . . . Robot Analysis Total . | . . . . . Derelict Logs Recovered 2 | . . 1 . 1 Drone Launches . | . . . . . Drone Recoveries . | . . . . . Exploration | -11 -10 -10 -9 -9 ------------- Run | Yrd Mat Min Mat Min Turns Passed 455 | 11 27 159 41 217 Spaces Moved 665 | 21 54 300 77 213 Core 665 | 21 54 300 77 213 Treads . | . . . . . Legs . | . . . . . Wheels . | . . . . . Hover . | . . . . . Flight . | . . . . . Fastest Speed 50 | 50 50 50 50 50 Average Speed 50 | 50 50 50 50 50 Slowest Speed 50 | 50 50 50 50 50 Overloaded Moves . | . . . . . Propulsion Burnouts . | . . . . . Robots Hopped . | . . . . . Potential Cave-ins . | . . . . . Cave-ins Triggered . | . . . . . Exploration Rate (%) 33 | 3 18 73 20 55 Regions Visited 4 Branch Regions 2 Pre-discovered Areas 1 | . . . . 1 Known Exits Taken . | . . . . . Unknown Exits Taken 4 | 1 1 1 1 . Scrap Searched 2 | . . 1 . 1 Spaces Dug . | . . . . . Terrain Destroyed . | . . . . . Melee . | . . . . . Projectile . | . . . . . AOE . | . . . . . Terrain Rammed . | . . . . . Walls Destroyed . | . . . . . Machines Disabled . | . . . . . Actions | -11 -10 -10 -9 -9 --------- Run | Yrd Mat Min Mat Min Total 782 | 20 53 308 78 323 Wait . | . . . . . Move 661 | 20 53 299 76 213 Hop . | . . . . . Pick Up . | . . . . . Fast Attach . | . . . . . Attach . | . . . . . Detach . | . . . . . Swap . | . . . . . Drop . | . . . . . Fire . | . . . . . Melee . | . . . . . Ram 121 | . . 9 2 110 Kick . | . . . . . Crush . | . . . . . Escape Stasis . | . . . . . Rewire . | . . . . . Trap . | . . . . . Miscellaneous . | . . . . . Route ------- -11/Scrapyard -10/Materials -10/Mines -9/Materials (discovered 2 exits: Mat / *Min) -9/Mines History --------- Turn | Location | Event 4 | -11/Scrapyard | Discovered new exit (range 14) 12 | -11/Scrapyard | Entered Materials 34 | -10/Materials | Discovered new exit (range 11) 39 | -10/Materials | Entered Mines 118 | -10/Mines | Core integrity fell below 50% 131 | -10/Mines | Learned location of 1 exit from Materials 156 | -10/Mines | Core integrity fell below 20% 185 | -10/Mines | Discovered new exit (range 7) 191 | -10/Mines | Met a Derelict who couldn't figure out how to use a Trap Extractor 198 | -10/Mines | Entered Materials 198 | -9/Materials | Evolved 2 slots: Power x2 199 | -9/Materials | Identified exit to Materials 233 | -9/Materials | Discovered new exit (range 12) 239 | -9/Materials | Entered Mines 289 | -9/Mines | Met a Derelict bent on vengeance 305 | -9/Mines | Build established: Mutant 397 | -9/Mines | Learned location of Zion (-7) 399 | -9/Mines | A Derelict revealed a hidden shortcut to a safe place 401 | -9/Mines | Core integrity fell below 50% 411 | -9/Mines | A weapon hastily lodged in a ceiling crevice suddenly fell to the ground 430 | -9/Mines | Core integrity fell below 20% 456 | -9/Mines | Destroyed by S-10 Pest with Light Assault Rifle Last Messages --------------- SYSTEM_VULNERABLE[Plasma Injector] NETWORK_OVERLOAD_FAIL 00385_ ALERT: Suspicious activity at Terminal M001. Dispatching Investigation squad. 00397_ Acquired derelict log, extracted data. World map updated: -7/Zion. 00399_ A derelict emerges from the shadows: "It's not safe here! Let me show you to a place where you won't have to worry about staying in one piece!" 00399_ Searching scrap... 00399_ Found Imp. Aluminum Leg. 00399_ Found Disposable Heat Sink. 00399_ Found Hcp. Storage Unit. 00399_ Found 43 Matter. 00399_ CT-7A3(z) destroyed. 00400_ Acquired 5 matter. 00411_ An Enh. Flamer has been hastily shoved under some rubble with a note attached: "One is never enough." 00411_ T-07 Excavator is excavating. 00414_ System corrupted: Energy discharge (-23). Map ----- +----------------------------------------------------+ | ????????# #?# #????####??????????#??????? | | ????????# ### #????# ?????????? ??????? | | ????????# #????# #????????# ??????? | | ????????##### #???## #???????# #??????? | | ????????????# #??## ##????## #???????? | | ????????????# #### ##??# #????????? | | ????????????# ### #?????????? | | ????????????# #?????????? | | ????????????######## #?????????? | | ???????????????????## ### ##?????????? | | ????????????????????## ##??????????????? | | ?????????????????????# #???????????????? | | ?????????????????????# #???????????????? | | ?????????????????????# t##??????????????? | | ?????????????????????# s ####???????????? | | ?????????????????????# #???????????? | | ????????????????????## ## #???????????? | | ???????????????????##s ##??#???????????? | | ???????????????????# ##???????????????? | | ??????????????????## ##???????????????? | | ?????????????????## ### ## ????????? | | ?????????????????# t #????????? | | ?????????????????# #????????? | | ?????????????????# ########????????? | | ????????????????## ##???????????????? | | ????????????????#@ ##????????????????? | | ??????????????? ###?????????????????? | | ????????????? ##???????????????????? | | ??????????? #????????????????????? | | ??????????####### ##????????????????????? | | ????????????????####?????????????????????? | | ?????????????????????????????????????????? | | | | | | | | | | | | | | | | | | | | | | | | | | | | | | | | | | | | | +----------------------------------------------------+ Best States ------------- Heat Dissipation 28 Energy Generation 5 Energy Capacity 100 Matter Stores 300 Matter Capacity 300 Sight Range 16 Terrain Scan Density 10 Evasion (%) 50 Item Schematics ----------------- None Robot Schematics ------------------ None Fabricated ------------ Nothing Repaired ---------- Nothing Studied --------- None Alien Tech Used ----------------- None Achievements -------------- None Challenges ------------ None Game ------ Seed RefineryWeaponsAutogun Manual? 0 Play Time 00:08:24 Cumulative 57.5 hours Start 2026.02.20 @ 23:42:02 End 2026.02.20 @ 23:47:37 Sessions 1 Manual Loads 0 Difficulty Rogue Special Mode None Game No. 176 Rogue 176 Adventurer 0 Explorer 0 Win Type - Total 0 Types 0/0/0/0/0/0/0/0/0/0 Lore% 61 Gallery% 35 Achievement% 33 Wizard Run 0 Options --------- Layout 0 ASCII 0 Keyboard 0 Movement Arrows Keybinds 0 Fullscreen 1 Font 24/Terminus Map View 64x52 Zoom Use 0% Tactical HUD 1 Map Filters NONE Filters NONE Steam 1 RUN: 7fb0266c-0770-4d6b-afc5-bbcdeeac0f73